bitfinex/quotes_SOLUSD_20240809
["timestamp","ask_amount","ask_price","bid_price","bid_amount"]
[1723205368292,0.8204782,156.77,156.76,27.46]
[1723205368685,0.8204782,156.77,156.75,27.46]
[1723205369272,0.8204782,156.77,156.76,27.46]
[1723205369475,0.8204782,156.77,156.76,72.58549]
[1723205371374,0.8204782,156.77,156.76,72.71098]
[1723205371698,0.8204782,156.77,156.76,92.96196]
[1723205375376,0.8204782,156.77,156.76,92.83647]
[1723205375571,0.8204782,156.77,156.76,20.0]
[1723205376098,0.8204782,156.77,156.76,47.46]
[1723205376274,0.8204782,156.77,156.76,47.58549]
[1723205376876,0.8204782,156.77,156.76,47.71098]
[1723205377381,0.8204782,156.77,156.76,72.58549]
[1723205377595,0.8204782,156.77,156.75,27.46]
[1723205377784,0.8204782,156.77,156.74,27.46]
[1723205377977,0.8204782,156.77,156.75,27.46]
[1723205378393,0.8204782,156.77,156.74,27.46]
[1723205378706,0.8204782,156.77,156.75,27.46]
[1723205379406,0.8204782,156.77,156.76,27.46]
[1723205379701,0.8204782,156.77,156.75,27.46]
[1723205380288,0.8204782,156.77,156.74,27.58549]
[1723205380485,0.8204782,156.77,156.74,0.12549]
[1723205380686,0.8204782,156.77,156.73,27.46]
[1723205380896,0.8204782,156.77,156.74,27.46]
[1723205381202,0.8204782,156.77,156.73,27.46]
[1723205381400,0.8204782,156.77,156.71,27.46]
[1723205381614,0.8204782,156.77,156.69,27.46]
[1723205381615,45.33260878,156.76,156.69,27.46]
[1723205381779,33.9215,156.74,156.67,27.46]
[1723205382114,1.59523688,156.73,156.67,27.46]
[1723205382498,1.59523688,156.73,156.65,27.46]
[1723205382499,27.46,156.72,156.65,27.46]
[1723205382705,16.2776,156.71,156.65,27.46]
[1723205383011,43.7376,156.71,156.64,27.46]
[1723205383185,29.05561734,156.7,156.63,27.46]
[1723205383386,27.46,156.69,156.62,27.46]
[1723205383712,6.4881,156.67,156.61,27.46]
[1723205383909,8.08403763,156.67,156.61,27.46]
[1723205384203,8.08403763,156.67,156.59,27.46]
[1723205384204,27.46,156.66,156.59,27.46]
[1723205384414,15.3608,156.64,156.58,27.46]
[1723205384608,16.95709279,156.64,156.58,27.46]
[1723205385318,16.95709279,156.64,156.56,27.46]
[1723205385319,27.46,156.63,156.56,27.46]
[1723205385619,27.46,156.6,156.53,27.46]
[1723205385908,7.90435209,156.59,156.53,27.46]
[1723205386110,7.90435209,156.59,156.54,27.46]
[1723205386484,6.3076,156.59,156.54,27.46]
[1723205386703,6.3076,156.59,156.55,27.46]
[1723205387204,6.3076,156.59,156.56,27.46]
[1723205387408,6.3076,156.59,156.5,7.95048399]
[1723205387612,6.3076,156.59,156.57,27.46]
[1723205388014,6.3076,156.59,156.56,27.46]
[1723205388199,6.3076,156.59,156.5,16.08103455]
[1723205388200,6.3076,156.59,156.54,27.46]
[1723205388510,6.3076,156.59,156.53,27.46]
[1723205388716,1.59677287,156.58,156.54,20.0]
[1723205389016,6.3076,156.59,156.54,47.46]
[1723205389185,33.7676,156.59,156.52,27.46]
[1723205389388,16.5851,156.57,156.51,27.46]
[1723205389622,18.18211051,156.57,156.51,27.46]
[1723205390096,16.5851,156.57,156.51,27.46]
[1723205390292,16.5851,156.57,156.53,27.46]
[1723205391209,16.5851,156.57,156.49,0.12549]
[1723205391210,16.5851,156.57,156.54,27.46]
[1723205391424,16.5851,156.57,156.56,27.46]
[1723205392121,15.785,156.61,156.56,27.58549]
[1723205392296,15.785,156.61,156.57,27.58549]
[1723205392496,15.785,156.61,156.58,28.73712499]
[1723205392698,15.785,156.61,156.58,27.46]
[1723205394018,15.785,156.61,156.59,27.46]
[1723205395116,15.785,156.61,156.6,27.46]
[1723205396000,16.2579,156.65,156.6,27.46]
[1723205398031,16.2579,156.65,156.56,27.58549]
[1723205398032,1.59617402,156.64,156.58,27.46]
[1723205398415,43.7179,156.65,156.58,27.46]
[1723205399599,27.46,156.63,156.56,27.46]
[1723205399808,27.46,156.62,156.55,27.46]
[1723205400114,27.46,156.62,156.56,20.0]
[1723205400502,27.46,156.64,156.57,27.46]
[1723205400896,27.46,156.64,156.56,47.46]
[1723205401120,16.2579,156.65,156.56,47.46]
[1723205401121,27.46,156.63,156.56,47.46]
[1723205401421,27.46,156.64,156.57,27.46]
[1723205402099,16.2579,156.65,156.58,27.46]
[1723205402100,43.7179,156.65,156.58,27.46]
[1723205402511,27.46,156.64,156.57,27.46]
[1723205403229,27.46,156.64,156.5,3.76852518]
[1723205403230,27.46,156.61,156.53,27.46]
[1723205403403,27.46,156.61,156.54,47.46]
[1723205403728,27.46,156.62,156.55,27.46]
[1723205405209,15.0746,156.58,156.52,27.46]
[1723205405400,29.05695487,156.57,156.5,27.46]
[1723205405738,27.46,156.54,156.47,27.46]
[1723205406322,27.46,156.55,156.48,27.46]
[1723205406516,27.46,156.55,156.47,27.46]
[1723205406999,0.12549,156.57,156.48,20.0]
[1723205407199,27.46,156.55,156.48,20.0]
[1723205407428,27.46,156.55,156.48,47.46]
[1723205408001,27.46,156.53,156.46,27.46]
[1723205408196,27.46,156.53,156.42,6.47]
[1723205408197,27.46,156.52,156.47,0.12549]
[1723205408401,29.05750273,156.51,156.44,27.46]
[1723205408817,1.59750273,156.51,156.45,27.46]
[1723205409017,27.46,156.52,156.45,27.46]
[1723205409330,16.4488,156.51,156.46,27.46]
[1723205409504,16.4488,156.51,156.47,27.46]
[1723205409704,16.4488,156.51,156.48,27.46]
[1723205411211,16.0145,156.55,156.49,27.46]
[1723205411508,16.0145,156.55,156.5,27.46]
[1723205412006,16.0145,156.55,156.49,27.46]
[1723205412204,29.05746345,156.54,156.48,27.46]
[1723205412409,27.46,156.53,156.46,27.46]
[1723205412618,27.46,156.5,156.44,27.46]
[1723205412810,1.59774897,156.49,156.43,27.46]
[1723205413128,16.0145,156.55,156.46,27.46]
[1723205413330,16.0145,156.55,156.49,27.46]
[1723205414128,43.4745,156.55,156.48,27.46]
[1723205415234,16.0145,156.55,156.49,27.46]
[1723205415635,43.4745,156.55,156.48,27.46]
[1723205417824,16.0145,156.55,156.51,27.46]
[1723205418136,16.0145,156.55,156.5,27.46]
[1723205418511,43.4745,156.55,156.48,27.46]
[1723205418708,27.46,156.54,156.47,27.58549]
[1723205419710,16.0145,156.55,156.48,27.46]
[1723205420215,16.0145,156.55,156.47,0.12549]
[1723205420412,16.0145,156.55,156.5,27.46]
[1723205421030,16.0145,156.55,156.51,27.46]
[1723205422302,16.0145,156.55,156.5,27.46]
[1723205422708,27.46,156.53,156.38,26.4574]
[1723205422937,27.46,156.51,156.44,27.46]
[1723205423136,1.59769584,156.5,156.44,27.46]
[1723205423439,15.0482,156.47,156.42,27.46]
[1723205424210,15.0482,156.47,156.32,51.12028684]
[1723205424211,1.5978269,156.46,156.4,27.46]
[1723205424410,1.5978269,156.46,156.37,27.46]
[1723205424411,27.46,156.44,156.37,27.46]
[1723205424712,27.46,156.44,156.32,30.7628]
[1723205424713,29.05836062,156.43,156.36,27.46]
[1723205424912,43.8135,156.41,156.34,27.46]
[1723205425113,8.19708162,156.4,156.34,27.46]
[1723205425520,6.5984,156.4,156.35,27.46]
[1723205426421,16.3535,156.41,156.38,27.46]
[1723205427063,16.3535,156.41,156.37,27.46]
[1723205427214,16.3535,156.41,156.35,27.46]
[1723205427414,16.3535,156.41,156.28,3.3028]
[1723205427747,27.46,156.37,156.3,27.46]
[1723205428041,34.1187,156.36,156.29,27.46]
[1723205428218,42.8196,156.35,156.28,27.46]
[1723205429629,27.46,156.34,156.27,27.46]
[1723205429840,15.3596,156.35,156.26,35.41]
[1723205430735,15.3596,156.35,156.27,20.0]
[1723205431145,15.3596,156.35,156.27,21.27957182]
[1723205431439,15.3596,156.35,156.28,35.41]
[1723205431639,15.3596,156.35,156.29,1.27948138]
[1723205431942,15.3596,156.35,156.28,45.12549]
[1723205432126,15.3596,156.35,156.27,20.0]
[1723205433250,15.3596,156.35,156.27,21.27954041]
[1723205433621,15.3596,156.35,156.28,80.66098]
[1723205433819,15.3596,156.35,156.28,80.78647]
[1723205434439,15.3596,156.35,156.32,35.41]
[1723205434748,15.3596,156.35,156.31,0.25098]
[1723205434952,15.3596,156.35,156.31,45.25098]
[1723205435657,15.0999,156.39,156.34,35.41]
[1723205435945,15.0999,156.39,156.35,45.12549]
[1723205436142,15.0999,156.39,156.36,35.41]
[1723205436453,45.43294745,156.46,156.37,0.12549]
[1723205436454,22.8412,156.45,156.37,0.12549]
[1723205436747,35.41,156.44,156.36,35.41]
[1723205437341,29.50444104,156.45,156.37,46.40424771]
[1723205437644,22.8412,156.45,156.37,46.40424771]
[1723205437844,22.8412,156.45,156.38,35.41]
[1723205438050,22.8412,156.45,156.4,35.41]
[1723205438429,22.8412,156.45,156.41,1.27850367]
[1723205438642,22.8412,156.45,156.4,35.41]
[1723205439447,22.8412,156.45,156.41,45.25098]
[1723205439751,16.5381,156.49,156.44,35.41]
[1723205440129,16.5381,156.49,156.45,0.12549]
[1723205444022,16.5381,156.49,156.41,35.41]
[1723205444227,16.5381,156.49,156.42,20.0]
[1723205445043,16.5381,156.49,156.35,6.1512]
[1723205445044,37.00798406,156.48,156.39,35.41]
[1723205445253,37.00798406,156.48,156.37,35.41]
[1723205445254,43.39858406,156.48,156.37,35.41]
[1723205445628,37.00798406,156.48,156.37,35.41]
[1723205446535,37.00798406,156.48,156.38,20.0]
[1723205446736,35.41,156.48,156.38,20.0]
[1723205448039,41.8008,156.48,156.38,20.0]
[1723205448243,35.41,156.46,156.35,35.41]
[1723205448561,16.6276,156.43,156.35,35.41]
[1723205448764,1.59855931,156.42,156.35,35.41]
[1723205448962,6.4011,156.41,156.33,35.41]
[1723205449585,6.4011,156.41,156.35,35.41]
[1723205449735,16.6276,156.43,156.37,35.41]
[1723205450537,16.6276,156.43,156.38,45.12549]
[1723205451163,16.6276,156.43,156.35,35.41]
[1723205451376,16.6276,156.43,156.36,20.0]
[1723205451655,16.6276,156.43,156.34,0.12549]
[1723205451958,16.6276,156.43,156.34,65.12549]
[1723205452468,16.6276,156.43,156.35,35.41]
[1723205452754,16.6276,156.43,156.36,46.40431642]
[1723205452957,16.6276,156.43,156.37,35.41]
[1723205453458,16.6276,156.43,156.38,0.12549]
[1723205454338,16.6276,156.43,156.38,45.12549]
[1723205454962,16.6276,156.43,156.38,0.12549]
[1723205456065,16.6276,156.43,156.37,80.66098]
[1723205456259,16.6276,156.43,156.37,81.93968613]
[1723205456565,16.6276,156.43,156.39,35.41]
[1723205457163,16.6276,156.43,156.4,1.27859326]
[1723205457538,16.6276,156.43,156.41,0.12549]
[1723205457763,16.6276,156.43,156.42,27.49]
[1723205458643,6.4529,156.45,156.41,28.89399106]
[1723205458959,6.4529,156.45,156.39,27.49]
[1723205459159,33.9429,156.45,156.38,27.49]
[1723205459662,6.4529,156.45,156.39,27.49]
[1723205459865,6.4529,156.45,156.4,27.49]
[1723205460045,6.4529,156.45,156.41,27.61549]
[1723205460362,6.4529,156.45,156.42,27.49]
[1723205460963,16.1266,156.47,156.42,27.49]
[1723205461265,16.1266,156.47,156.43,27.49]
[1723205461464,16.1266,156.47,156.42,27.49]
[1723205461638,43.6166,156.47,156.41,0.12549]
[1723205461839,27.49,156.46,156.39,27.49]
[1723205462050,29.08825687,156.45,156.38,27.61549]
[1723205462254,27.49,156.46,156.4,27.61549]
[1723205462462,16.1266,156.47,156.41,27.49]
[1723205462867,43.6166,156.47,156.4,27.61549]
[1723205463166,27.49,156.46,156.4,0.12549]
[1723205463549,16.1266,156.47,156.43,27.49]
[1723205463846,16.1266,156.47,156.44,27.49]
[1723205464047,16.1266,156.47,156.43,27.49]
[1723205464450,16.1266,156.47,156.42,27.49]
[1723205464656,16.1266,156.47,156.41,27.49]
[1723205466074,27.49,156.46,156.4,0.12549]
[1723205466573,16.1266,156.47,156.41,27.49]
[1723205466869,16.1266,156.47,156.43,27.49]
[1723205467087,16.1266,156.47,156.45,27.49]
[1723205468271,6.3881,156.54,156.44,1.27835291]
[1723205468272,15.3404,156.51,156.46,72.49]
[1723205468480,15.3404,156.51,156.47,27.49]
[1723205468776,15.3404,156.51,156.46,45.0]
[1723205468777,15.3404,156.51,156.35,20.0]
[1723205468981,15.3404,156.51,156.33,16.679689]
[1723205468982,29.08778028,156.5,156.42,27.49]
[1723205469281,6.2727,156.46,156.41,27.49]
[1723205469455,6.2727,156.46,156.43,27.49]
[1723205469659,6.2727,156.5,156.45,27.49]
[1723205469860,6.2727,156.5,156.44,27.61549]
[1723205470161,6.2727,156.5,156.37,1.27837796]
[1723205470162,33.7627,156.5,156.43,27.49]
[1723205470858,6.2727,156.5,156.43,27.49]
[1723205471562,6.2727,156.5,156.44,27.49]
[1723205471769,6.2727,156.5,156.45,27.49]
[1723205471972,6.2727,156.5,156.46,27.49]
[1723205473074,6.2727,156.5,156.48,27.49]
[1723205473272,15.3404,156.51,156.49,27.49]
[1723205473472,15.3404,156.51,156.5,27.49]
[1723205473665,6.2552,156.54,156.5,27.49]
[1723205473872,6.2552,156.54,156.52,27.49]
[1723205474058,6.2552,156.54,156.5,27.49]
[1723205474263,35.34250609,156.54,156.47,27.49]
[1723205474488,27.49,156.52,156.45,27.61549]
[1723205474660,16.2127,156.5,156.45,0.12549]
[1723205474985,29.08774381,156.49,156.42,27.61549]
[1723205475366,29.08774381,156.49,156.42,27.49]
[1723205475767,33.931,156.48,156.41,27.49]
[1723205475968,1.59794357,156.47,156.41,27.49]
[1723205476890,1.59794357,156.47,156.42,45.0]
[1723205477993,27.49,156.45,156.38,27.49]
[1723205478156,27.49,156.45,156.33,7.29567062]
[1723205478157,16.2083,156.46,156.4,27.49]
[1723205478496,16.2083,156.46,156.42,27.49]
[1723205478670,16.2083,156.46,156.43,27.49]
[1723205478876,16.2083,156.46,156.44,27.49]
[1723205480293,16.2083,156.46,156.43,27.49]
[1723205480762,16.2083,156.46,156.41,27.49]
[1723205480967,16.2083,156.46,156.4,27.49]
[1723205481285,27.49,156.45,156.38,27.49]
[1723205481475,43.6983,156.46,156.39,27.49]
[1723205481869,16.2083,156.46,156.4,27.49]
[1723205482099,16.2083,156.46,156.39,27.49]
[1723205482486,16.2083,156.46,156.4,27.49]
[1723205483494,16.2083,156.46,156.41,27.49]
[1723205483873,16.2083,156.46,156.4,27.49]
[1723205485600,43.6983,156.46,156.38,27.49]
[1723205485803,1.59825075,156.45,156.38,27.49]
[1723205486003,16.2083,156.46,156.4,27.49]
[1723205486877,16.2083,156.46,156.41,27.49]
[1723205487083,16.2083,156.46,156.45,27.49]
[1723205487283,6.441,156.48,156.45,27.49]
[1723205487587,15.7141,156.5,156.47,27.49]
[1723205487791,15.7141,156.5,156.48,27.49]
[1723205488301,15.7141,156.5,156.47,27.49]
[1723205488510,15.7141,156.5,156.48,27.49]
[1723205488810,15.7141,156.5,156.49,27.49]
[1723205489099,15.9829,156.54,156.49,27.61549]
[1723205489283,15.9829,156.54,156.51,27.49]
[1723205489483,15.9829,156.54,156.5,27.49]
[1723205489686,15.9829,156.54,156.49,35.43549]
[1723205491300,6.3191,156.56,156.51,35.31]
[1723205491612,15.0741,156.58,156.53,35.31]
[1723205491911,15.0741,156.58,156.52,0.12549]
[1723205492107,15.0741,156.58,156.49,35.31]
[1723205492813,15.0741,156.58,156.51,35.31]
[1723205493111,15.0741,156.58,156.53,35.31]
[1723205493498,15.0741,156.58,156.54,1.27744024]
[1723205494112,15.0741,156.58,156.55,0.12549]
[1723205494411,15.0741,156.58,156.55,36.71281385]
[1723205494586,15.0741,156.58,156.53,35.31]
[1723205494785,15.0741,156.58,156.51,35.31]
[1723205494994,16.67104948,156.58,156.52,0.12549]
[1723205495199,1.59708816,156.57,156.5,20.12549]
[1723205495510,1.59708816,156.57,156.51,0.12549]
[1723205495892,15.0741,156.58,156.51,0.12549]
[1723205496088,15.0741,156.58,156.51,80.43549]
[1723205496614,15.0741,156.58,156.52,35.68647]
[1723205496912,15.0741,156.58,156.53,0.12549]
[1723205497893,15.0741,156.58,156.53,45.12549]
[1723205498098,15.0741,156.58,156.56,35.31]
[1723205498410,6.2561,156.6,156.56,35.31]
[1723205498618,16.1163,156.62,156.57,1.40264092]
[1723205498814,16.1163,156.62,156.58,1.27716576]
[1723205499110,16.1163,156.62,156.57,0.12549]
[1723205500814,16.1163,156.62,156.57,1.40261994]
[1723205501114,15.7583,156.66,156.6,35.31]
[1723205501317,15.7583,156.66,156.64,0.12549]
[1723205501613,6.4305,156.68,156.64,0.25098]
[1723205501909,15.7583,156.7,156.64,45.37647]
[1723205502294,15.7583,156.7,156.65,0.12549]
[1723205502495,15.7583,156.7,156.65,0.25098]
[1723205502820,15.7583,156.7,156.65,0.12549]
[1723205503712,15.7583,156.7,156.64,45.0]
[1723205506017,15.2519218,156.7,156.65,35.56098]
[1723205506316,15.2519218,156.7,156.66,45.12549]
[1723205506521,15.2519218,156.7,156.65,0.12549]
[1723205507321,15.2519218,156.7,156.65,0.37647]
[1723205508518,15.2519218,156.7,156.65,0.25098]
[1723205508824,15.2519218,156.7,156.64,0.12549]
[1723205509034,1.59566847,156.69,156.64,0.12549]
[1723205509321,15.2519218,156.7,156.64,0.12549]
[1723205509922,1.59568079,156.69,156.64,0.12549]
[1723205510419,15.2519218,156.7,156.64,0.12549]
[1723205510626,15.2519218,156.7,156.61,35.31]
[1723205510923,15.2519218,156.7,156.62,65.37647]
[1723205511619,16.84778733,156.7,156.62,65.12549]
[1723205511807,15.2519218,156.7,156.62,65.12549]
[1723205512020,15.2519218,156.7,156.63,0.12549]
[1723205512529,15.2519218,156.7,156.63,35.43549]
[1723205512720,15.2519218,156.7,156.65,35.43549]
[1723205513123,15.2519218,156.7,156.66,0.12549]
[1723205513727,15.2519218,156.7,156.65,0.12549]
[1723205513930,15.2519218,156.7,156.64,0.25098]
[1723205514101,15.2519218,156.7,156.64,45.25098]
[1723205515231,15.2519218,156.7,156.64,0.12549]
[1723205515409,1.59574273,156.69,156.64,0.12549]
[1723205515604,15.2519218,156.7,156.64,0.12549]
[1723205515810,15.2519218,156.7,156.64,27.66098]
[1723205516133,15.2519218,156.7,156.66,27.41]
[1723205516426,15.2519218,156.7,156.64,0.25098]
[1723205516427,15.2519218,156.7,156.64,27.66098]
[1723205516617,16.84759497,156.7,156.64,27.66098]
[1723205517003,15.2519218,156.7,156.66,27.41]
[1723205518210,16.524,156.74,156.69,27.41]
[1723205518410,16.524,156.74,156.7,28.68611323]
[1723205518732,16.524,156.74,156.68,0.12549]
[1723205518733,16.524,156.74,156.71,28.68604011]
[1723205519137,16.524,156.74,156.71,27.41]
[1723205519447,6.66688029,156.75,156.69,0.12549]
[1723205519448,6.0378,156.76,156.72,28.68600162]
[1723205519612,6.0378,156.76,156.73,27.41]
[1723205519810,6.0378,156.76,156.74,1.27585783]
[1723205520018,0.8204782,156.77,156.74,1.27585783]
[1723205520222,0.8204782,156.77,156.73,27.41]
[1723205520418,0.8204782,156.77,156.71,27.53549]
[1723205520627,27.41,156.76,156.69,27.41]
[1723205520829,27.41,156.76,156.7,65.12549]
[1723205521216,1.59514224,156.75,156.7,65.12549]
[1723205521707,28.2304782,156.77,156.7,92.53549]
[1723205522507,28.2304782,156.77,156.7,65.12549]
[1723205522929,27.41,156.76,156.7,65.12549]
[1723205523312,27.41,156.76,156.7,92.53549]
[1723205523526,28.2304782,156.77,156.7,92.53549]
[1723205523730,0.8204782,156.77,156.71,27.41]
[1723205523939,0.8204782,156.77,156.72,27.41]
[1723205524321,29.82545131,156.77,156.7,92.53549]
[1723205524519,27.41,156.74,156.67,27.41]
[1723205524730,29.00534245,156.73,156.66,27.41]
[1723205524942,27.41,156.74,156.67,27.41]
[1723205525245,1.59529406,156.75,156.62,6.0933]
[1723205525246,27.41,156.76,156.69,27.41]
[1723205526735,27.41,156.75,156.68,27.66098]
[1723205527039,29.00526096,156.74,156.68,0.12549]
[1723205527214,27.41,156.73,156.66,27.41]
[1723205527415,27.41,156.69,156.62,27.41]
[1723205527815,1.59576981,156.7,156.63,27.41]
[1723205527816,27.41,156.7,156.63,27.41]
[1723205528145,43.8382,156.71,156.64,27.41]
[1723205528510,29.00567958,156.7,156.63,27.41]
[1723205528716,29.00567958,156.7,156.64,45.12549]
[1723205529743,1.59567958,156.7,156.64,45.12549]
[1723205530045,16.4282,156.71,156.64,45.12549]
[1723205530216,1.59567907,156.7,156.64,45.12549]
[1723205530917,16.4282,156.71,156.65,35.37549]
[1723205531120,16.4282,156.71,156.67,35.25]
[1723205531340,16.4282,156.71,156.66,0.12549]
[1723205531539,18.02374069,156.71,156.66,0.12549]
[1723205531846,18.02374069,156.71,156.65,0.12549]
[1723205531847,18.02374069,156.71,156.65,0.25098]
[1723205532451,16.4282,156.71,156.65,0.25098]
[1723205532738,16.4282,156.71,156.65,0.12549]
[1723205532922,16.4282,156.71,156.64,45.0]
[1723205533132,16.4282,156.71,156.65,0.12549]
[1723205533652,16.4282,156.71,156.65,35.37549]
[1723205533844,16.4282,156.71,156.65,35.50098]
[1723205534033,16.4282,156.71,156.66,45.0]
[1723205534845,16.4282,156.71,156.65,35.50098]
[1723205535049,16.4282,156.71,156.66,45.0]
[1723205535633,6.509,156.73,156.67,35.50098]
[1723205535843,6.509,156.73,156.67,35.62647]
[1723205536039,6.509,156.73,156.67,35.50098]
[1723205536750,6.509,156.73,156.68,45.0]
[1723205536925,6.509,156.73,156.69,0.25098]
[1723205537130,15.677,156.75,156.69,35.50098]
[1723205537346,15.677,156.75,156.71,35.37549]
[1723205537554,15.677,156.75,156.72,0.12549]
[1723205537730,15.677,156.75,156.72,45.12549]
[1723205539343,15.677,156.75,156.69,35.37549]
[1723205539541,1.59518291,156.74,156.7,20.0]
[1723205540154,15.677,156.75,156.7,20.0]
[1723205540337,15.677,156.75,156.69,35.25]
[1723205540538,15.677,156.75,156.69,36.52600625]
[1723205540749,15.677,156.75,156.71,35.25]
[1723205541240,15.677,156.75,156.73,35.25]
[1723205541453,0.8204782,156.77,156.73,35.25]
[1723205541655,0.8204782,156.77,156.72,45.25098]
[1723205541958,0.8204782,156.77,156.72,0.12549]
[1723205542252,0.8204782,156.77,156.69,35.25]
[1723205542460,0.8204782,156.77,156.68,20.0]
[1723205542629,0.8204782,156.77,156.69,35.25]
[1723205543028,0.8204782,156.77,156.69,36.52605795]
[1723205543655,0.8204782,156.77,156.7,45.37647]
[1723205543857,0.8204782,156.77,156.71,35.25]
[1723205544027,0.8204782,156.77,156.73,35.25]
[1723205544234,0.8204782,156.77,156.74,0.12549]
[1723205545546,0.8204782,156.77,156.74,1.40129745]
[1723205546341,0.8204782,156.77,156.74,45.12549]
[1723205546841,0.8204782,156.77,156.74,0.12549]
[1723205547042,0.8204782,156.77,156.73,0.25098]
[1723205547532,0.8204782,156.77,156.73,0.12549]
[1723205547854,0.8204782,156.77,156.73,0.25098]
[1723205548460,0.8204782,156.77,156.73,35.50098]
[1723205548638,0.8204782,156.77,156.74,45.0]
[1723205549745,0.8204782,156.77,156.74,72.38]
[1723205549947,0.8204782,156.77,156.71,27.38]
[1723205550145,28.2004782,156.77,156.7,27.38]
[1723205550363,28.2004782,156.77,156.71,20.0]
[1723205550668,27.38,156.76,156.71,20.0]
[1723205550864,28.97520062,156.75,156.7,20.0]
[1723205551168,6.6298,156.74,156.67,27.38]
[1723205551364,6.6298,156.74,156.7,27.38]
[1723205551868,6.6298,156.74,156.69,47.38]
[1723205552234,6.6298,156.74,156.69,20.0]
[1723205552653,6.6298,156.74,156.69,27.38]
[1723205554245,6.6298,156.74,156.68,47.50549]
[1723205554568,6.6298,156.74,156.69,27.50549]
[1723205554755,15.0,156.73,156.69,0.12549]
[1723205555063,28.97525446,156.72,156.65,27.38]
[1723205555262,27.38,156.7,156.63,27.38]
[1723205555474,1.59565078,156.69,156.63,27.38]
[1723205555845,1.59565078,156.69,156.62,27.38]
[1723205557344,27.38,156.7,156.59,2.47691322]
[1723205557562,27.38,156.71,156.64,27.38]
[1723205558068,28.97572943,156.7,156.63,27.50549]
[1723205558240,27.38,156.71,156.64,27.38]
[1723205558446,27.38,156.72,156.65,27.38]
[1723205559258,27.38,156.7,156.63,27.38]
[1723205559469,1.59583473,156.69,156.63,27.38]
[1723205559974,27.38,156.71,156.64,27.38]
[1723205562554,27.38,156.7,156.63,27.38]
[1723205562757,27.38,156.65,156.56,5.93521219]
[1723205563088,42.7595,156.63,156.56,27.38]
[1723205563448,35.60503913,156.62,156.55,27.38]
[1723205563867,27.38,156.61,156.54,27.38]
[1723205564279,6.6285,156.62,156.56,27.38]
[1723205565181,27.38,156.61,156.54,27.38]
[1723205565475,27.38,156.61,156.55,20.0]
[1723205565677,6.6285,156.62,156.56,27.38]
[1723205565979,6.6285,156.62,156.57,27.38]
[1723205570880,6.6285,156.62,156.58,27.38]
[1723205571078,6.6285,156.62,156.56,27.38]
[1723205571277,6.6285,156.62,156.57,27.38]
[1723205573480,6.6285,156.62,156.58,27.38]
[1723205573666,6.6285,156.62,156.57,27.38]
[1723205575382,6.6285,156.62,156.56,27.38]
[1723205575962,34.0085,156.62,156.55,47.50549]
[1723205576163,27.38,156.61,156.56,0.12549]
[1723205576382,34.0085,156.62,156.56,0.12549]
[1723205576584,6.6285,156.62,156.57,27.38]
[1723205577284,6.6285,156.62,156.59,27.38]
[1723205577490,6.6285,156.62,156.58,27.38]
[1723205579165,6.6285,156.62,156.59,0.12549]